Cogmind - Beta 16 @@@ ROGUE MODE // 2026.01.03 @ 04:36:05 Player: C4PT41N Result: Destroyed by NJ-AKO(R) with Subdweller Laser Performance ------------- Evolutions (0) 0 Regions Visited (3) 600 Robots Destroyed (22) 110 Value Destroyed (476) 476 Prototype IDs (0) 0 Alien Tech Used (0) 0 Bonus (-59) -59 TOTAL SCORE: 1127 Bonus ------- Friendly Fire -59 Cogmind --------- Core Integrity 0/250 Matter 249/300 Energy 160/200 System Corruption 0% Temperature Cool (6) Movement Rolling (100) Location -10/Subcaves Parts ------- > --- POWER (1) -------- Subdweller Power Source > --- PROPULSION (2) --- Compact Wheel Compact Wheel > --- UTILITY (2) ------ Large Storage Unit Signal Interpreter > --- WEAPON (2) ------- (None) > --- INVENTORY (15) --- Improved Ion Engine Small Battery (100) Weight Redist. System Structural Scanner Sensor Array Seismic Detector Targeting Computer Advanced Targeting Computer ECM Suite Scrap Shield Barrage Gun Peak State ------------ > --- POWER ------------ Neutrino Core > --- PROPULSION ------- Subdweller Monowheel Subdweller Monowheel > --- UTILITY ---------- Large Storage Unit Signal Interpreter > --- WEAPON ----------- Subdweller Laser Light EM Pulse Cannon > --- INVENTORY -------- Improved Ion Engine Wheel Compact Wheel Small Battery Weight Redist. System Structural Scanner Sensor Array Seismic Detector Targeting Computer Advanced Targeting Computer ECM Suite Scrap Shield Grenade Launcher Mining Laser [Rating: 18] Favorites ----------- Power Neutrino Core Engine Improved Ion Engine Power Core Neutrino Core Propulsion Wheel Leg Aluminum Leg Wheel Wheel Utility Large Storage Unit Device Seismic Detector Storage Large Storage Unit Processor Signal Interpreter Weapon Light EM Pulse Cannon Energy Gun Subdweller Laser Energy Cannon Light EM Pulse Cannon Ballistic Gun Light Assault Rifle Launcher Grenade Launcher Special Weapon Mining Laser Build | -11 -10 -10 -10 ------- Run | Yrd Mat Min Sub Slots Evolved . | . . . . Power . | . . . . Propulsion . | . . . . Utility . | . . . . Weapon . | . . . . Parts Attached 27 | 9 5 4 9 Power 5 | 1 . 2 2 Engine 4 | 1 . 2 1 Core 1 | . . . 1 Reactor . | . . . . Propulsion 9 | 3 1 1 4 Treads . | . . . . Leg 1 | 1 . . . Wheel 8 | 2 1 1 4 Hover . | . . . . Flight . | . . . . Utility 4 | 2 1 1 . Device 1 | 1 . . . Storage 2 | 1 1 . . Processor 1 | . . 1 . Hackware . | . . . . Protection . | . . . . Artifact . | . . . . Weapon 9 | 3 3 . 3 Energy Gun 3 | 2 . . 1 Energy Cannon 3 | . 3 . . Ballistic Gun 1 | 1 . . . Ballistic Cannon . | . . . . Launcher 1 | . . . 1 Special Weapon 1 | . . . 1 Impact Weapon . | . . . . Slashing Weapon . | . . . . Piercing Weapon . | . . . . Special Melee Weapon . | . . . . Unidentified Prototypes . | . . . . Parts Lost 8 | . 1 . 7 Power 1 | . . . 1 Propulsion 2 | . . . 2 Utility . | . . . . Weapon 5 | . 1 . 4 Highest Loss Streak 4 | . 1 . 4 To Critical Strikes 1 | . . . 1 Average Backups 12 | 3 8 14 13 Power 1 | . 1 1 1 Propulsion 1 | 1 1 1 1 Utility 7 | . 4 8 9 Weapon 1 | . 2 2 1 Tool/Special . | . . . . Unused Backups 15 | . 2 3 10 Power 1 | . . 1 . Propulsion 1 | . 1 . . Utility 12 | . 1 2 9 Weapon 1 | . . . 1 Tool/Special . | . . . . Average Slot Usage (%) 97 | . 98 100 95 Engine 7 | . 14 14 2 Core 6 | . . . 11 Wheel 26 | . 28 28 26 Device 3 | . 14 6 . Storage 14 | . 14 14 14 Processor 10 | . . 7 14 Energy Gun 4 | . 1 . 7 Energy Cannon 18 | . 25 28 11 Special Weapon 3 | . . . 6 Peak Build Rating 18 | 7 10 13 18 Average Rating 12 | 5 9 11 14 On Entrance 7 | . 7 10 12 Avg Prop Armor Cover (%) . | . . . . Naked Turns . | . . . . Heaviest Build 42 | 14 34 37 42 Greatest Support 40 | 26 26 26 40 Greatest Overweight (x) 12 | 1 1 1 12 Average Overweight (x) . | . . 1 1 Largest Inventory Capacity 15 | 8 15 15 15 Average Capacity 14 | 7 12 15 15 Most Carried 15 | 6 11 15 15 Average Carried 13 | 3 8 14 14 Final Capacity 15 | 8 15 15 15 Final Carried 15 | 6 11 15 12 Class Distribution -------------------- 72% | Mutant 27% | Scavenger-Mutant Dominant Class ---------------- Mutant | -10/Materials Mutant | -10/Mines Mutant | -10/Subcaves Resources | -11 -10 -10 -10 ----------- Run | Yrd Mat Min Sub Matter Collected 552 | 285 75 33 159 Remotely . | . . . . Salvage Created 772 | 110 161 167 334 Parts 56 | 4 19 8 25 Haulers Intercepted . | . . . . Recyclers Shooed 1 | . . 1 . Parts Field Recycled . | . . . . Retrieved Matter . | . . . . Parts Self-Destructed 9 | . . . 9 Prevented 2 | . . . 2 Parts Restored . | . . . . Kills | -11 -10 -10 -10 ------- Run | Yrd Mat Min Sub Combat Hostiles Destroyed 15 | . 5 3 7 Guns 1 | . . . 1 Cannons 11 | . 2 3 6 AOE 3 | . 3 . . Classes Destroyed 10 | 2 4 1 3 Builder 1 | . 1 . . Tunneler 3 | 2 . 1 . Recycler 2 | 1 . 1 . Watcher 2 | . 2 . . Swarmer 6 | . 3 2 1 Grunt 2 | . 2 . . Sentry 1 | . . . 1 Artisan 1 | . . . 1 Subdweller 5 | . . . 5 Assembled 1 | . . 1 . Best Kill Streak 7 | 2 7 2 2 Combat Bots Only 5 | . 5 2 2 Max Kills in Single Turn 5 | 1 5 1 1 Gunslinging . | . . . . Exploded 3 | . 3 . . Melee . | . . . . Uniques/NPCs Destroyed . | . . . . Combat | -11 -10 -10 -10 -------- Run | Yrd Mat Min Sub Hostile Shots Fired 54 | . . 3 51 Missed 19 | . . 2 17 Hits 35 | . . 1 34 Projectile 35 | . . 1 34 AOE 1 | . . . 1 Critical Strikes 4 | . . . 4 Damage Taken 936 | . 133 39 764 Core 254 | . 28 3 223 Absorbed by Shields . | . . . . Core Remaining (%) 100 | 100 . . . Volleys Fired 107 | 12 4 7 84 Largest 2 | 2 2 2 2 Hottest 116 | 90 112 112 116 Shots Fired 136 | 20 8 14 94 Gun 28 | 20 . . 8 Cannon 50 | . 8 14 28 Launcher 3 | . . . 3 Special 55 | . . . 55 Kinetic . | . . . . Thermal 83 | 20 . . 63 Explosive 3 | . . . 3 Electromagnetic 50 | . 8 14 28 Robot Hit Streak 6 | 4 3 6 6 Robot Miss Streak 2 | 2 1 1 2 Penetration Max . | . . . . Secondary Targets . | . . . . Shots Hit Robots 50 | 11 4 9 26 Core Hits 29 | 4 7 6 12 Critical Kills . | . . . . Critical Parts Destroyed . | . . . . Critical Strikes 1 | 1 . . . Burn 1 | 1 . . . Melee Attacks . | . . . . Impact . | . . . . Slashing . | . . . . Piercing . | . . . . Sneak Attacks . | . . . . Combat Hostiles . | . . . . Follow-up Attacks . | . . . . Damage Inflicted 1482 | 133 569 219 561 Guns 213 | 133 . . 80 Cannons 636 | . 108 178 350 Explosions 592 | . 461 . 131 Melee . | . . . . Ramming 41 | . . 41 . Kinetic . | . . . . Thermal 213 | 133 . . 80 Explosive 592 | . 461 . 131 Electromagnetic 636 | . 108 178 350 Impact . | . . . . Slashing . | . . . . Piercing . | . . . . Highest Corruption . | . . . . Average Corruption . | . . . . Corruption Purged . | . . . . Corruption Blocked . | . . . . Overload Shots . | . . . . Overflow Damage 82 | . 67 10 5 Projectiles 4 | . . 4 . Explosions 72 | . 67 . 5 Melee 6 | . . 6 . Knockbacks . | . . . . Impact . | . . . . Kinetic . | . . . . Secondary . | . . . . Self-Inflicted Damage 214 | . 133 20 61 Shots 4 | . 2 . 2 Rammed 3 | . . 3 . Targets Rammed 3 | . . 3 . Kicked . | . . . . Crushed . | . . . . Highest Temperature 130 | 130 51 108 18 Average Temperature 37 | 53 28 46 5 Received Heat Transfer 156 | . . . 156 Siege Activations . | . . . . Martial Activations . | . . . . Shielding Activations . | . . . . Robots Disrupted 1 | . . 1 . Combat Hostiles 1 | . . 1 . Robots Corrupted 1 | . . 1 . Combat Hostiles . | . . . . Parts Fried 2 | . . 1 1 Impact Corruptions 1 | . . 1 . Robots Melted . | . . . . Combat Hostiles . | . . . . Parts Melted 1 | 1 . . . Heat Transferred 557 | 457 . . 100 Parts Sabotaged . | . . . . Parts Stolen . | . . . . Parts Stripped . | . . . . Power Chain Reactions . | . . . . Alert | -11 -10 -10 -10 ------- Run | Yrd Mat Min Sub Maximum Alert Level . | . . . . Low Security (%) 100 | 100 100 100 . Level 1 . | . . . . Level 2 . | . . . . Level 3 . | . . . . Level 4 . | . . . . Level 5 . | . . . . High Security . | . . . . Max Security . | . . . . Peak Influence 156 | 5 156 30 . Initial 7 | . . 7 . Average 19 | 1 56 1 . Influence Increases 408 | 15 183 50 160 Destroy 0b10 Robot/C 180 | . 100 40 40 Destroy 0b10 Robot/NC 40 | 15 15 10 . Destroy Leader 24 | . 24 . . Disable Machine 30 | . 30 . . Destroy Structure 14 | . 14 . . Lose Combat Pursuer 120 | . . . 120 Influence Decreases 408 | 15 162 71 160 Entered New Map 14 | . . 14 . Time Decay 384 | 15 152 57 160 Lost Part 10 | . 10 . . Squads Dispatched . | . . . . Investigation . | . . . . Extermination . | . . . . Reinforcement . | . . . . Assault . | . . . . Garrison . | . . . . Intercept . | . . . . Searches Triggered . | . . . . Construction Impeded . | . . . . Haulers Reinforced . | . . . . Active Scanning Responses . | . . . . Cargo Convoy Interrupts . | . . . . Stealth | -11 -10 -10 -10 --------- Run | Yrd Mat Min Sub Distress Signals 2 | . 2 . . Communications Jammed . | . . . . Distress Signals . | . . . . Times Spotted 38 | . 8 4 26 Peak Tracking Total 4 | . 4 1 4 Tactical Retreats 3 | . . . 3 Traps | -11 -10 -10 -10 ------- Run | Yrd Mat Min Sub Traps Triggered . | . . . . Indirectly . | . . . . Trap Hack Attempts . | . . . . Triggered . | . . . . Disarmed . | . . . . Reprogrammed . | . . . . Reused . | . . . . Traps Extracted . | . . . . Installed . | . . . . Triggered . | . . . . Machines | -11 -10 -10 -10 ---------- Run | Yrd Mat Min Sub Machines Disabled 3 | . 2 . 1 Max in Single Turn 2 | . 2 . 1 Machines Repaired . | . . . . Machines Dismantled . | . . . . Machines Sabotaged . | . . . . Overloaded Fab Kills . | . . . . Hacking | -11 -10 -10 -10 --------- Run | Yrd Mat Min Sub Machines Accessed 3 | . 1 1 1 Terminals 1 | . 1 . . Fabricators . | . . . . Repair Stations . | . . . . Recycling Units . | . . . . Scanalyzers . | . . . . Garrison Access . | . . . . Total Hacks 6 | . 1 1 4 Successful 5 | . . 1 4 Failed 1 | . 1 . . Catastrophic . | . . . . Database Lockouts . | . . . . Manual 1 | . 1 . . Terminals 1 | . 1 . . Fabricators . | . . . . Repair Stations . | . . . . Recycling Units . | . . . . Scanalyzers . | . . . . Garrison Access . | . . . . Terminal Hacks 5 | . . 1 4 Record 4 | . . . 4 Open Door 1 | . . 1 . Fabricator Hacks . | . . . . Repair Station Hacks . | . . . . Recycling Unit Hacks . | . . . . Scanalyzer . | . . . . Garrison Access Hacks . | . . . . Unauthorized Hacks . | . . . . Terminals . | . . . . Fabricators . | . . . . Repair Stations . | . . . . Recycling Units . | . . . . Scanalyzers . | . . . . Garrison Access . | . . . . Data Cores Recovered . | . . . . Used . | . . . . Hacking Detections 1 | . 1 . . Full Trace Events . | . . . . Feedback Events . | . . . . Feedback Blocked . | . . . . Robot Schematics Acquired . | . . . . Robots Built . | . . . . Authchips . | . . . . Time . | . . . . Total Robot Build Rating . | . . . . Part Schematics Acquired . | . . . . Parts Built . | . . . . Authchips . | . . . . Time . | . . . . Total Part Build Rating . | . . . . Part Studies Acquired . | . . . . Parts Repaired . | . . . . Time . | . . . . Parts Recycled . | . . . . Recycled Matter . | . . . . Retrieved Matter . | . . . . Retrieved Components . | . . . . Parts Scanalyzed . | . . . . Part Schematics Acquired . | . . . . Parts Damaged . | . . . . Bothacking | -11 -10 -10 -10 ------------ Run | Yrd Mat Min Sub Used RIF Installer . | . . . . Robots Hacked . | . . . . Non-combat . | . . . . Combat . | . . . . Robot Hacks Applied . | . . . . Relay Couplers Released . | . . . . Fabnet Peak Effective % . | . . . . Robots Rewired . | . . . . Allies Hacked . | . . . . Hacks Repelled . | . . . . Allies | -11 -10 -10 -10 -------- Run | Yrd Mat Min Sub Total Allies . | . . . . Largest Group . | . . . . Highest-Rated Group . | . . . . Highest-Rated Ally . | . . . . Total Orders . | . . . . Ally Attacks . | . . . . Total Damage . | . . . . Kills . | . . . . Allies Corrupted . | . . . . Allies Melted . | . . . . Intel | -11 -10 -10 -10 ------- Run | Yrd Mat Min Sub Active Infowar (turns) 880 | 9 472 399 . Seismic 880 | 9 472 399 . Robot Analysis Total . | . . . . Derelict Logs Recovered 3 | . . 2 1 Drone Launches . | . . . . Drone Recoveries . | . . . . Exploration | -11 -10 -10 -10 ------------- Run | Yrd Mat Min Sub Turns Passed 3328 | 126 472 881 1849 Spaces Moved 2734 | 81 426 804 1423 Core 15 | 8 . . 7 Treads . | . . . . Legs 2 | 2 . . . Wheels 2717 | 71 426 804 1416 Hover . | . . . . Flight . | . . . . Fastest Speed 50 | 50 90 105 95 Average Speed 103 | 89 99 105 105 Slowest Speed 650 | 190 105 105 650 Overloaded Moves . | . . . . Propulsion Burnouts . | . . . . Robots Hopped . | . . . . Potential Cave-ins 2 | . . 2 . Cave-ins Triggered . | . . . . Exploration Rate (%) 44 | 5 37 99 37 Regions Visited 3 Branch Regions 2 Pre-discovered Areas 4 | . . 3 1 Known Exits Taken 1 | . . 1 . Unknown Exits Taken 2 | 1 1 . . Scrap Searched 9 | . . 3 6 Spaces Dug . | . . . . Terrain Destroyed 24 | . 13 . 11 Melee . | . . . . Projectile . | . . . . AOE 24 | . 13 . 11 Terrain Rammed . | . . . . Walls Destroyed . | . . . . Machines Disabled . | . . . . Actions | -11 -10 -10 -10 --------- Run | Yrd Mat Min Sub Total 2978 | 112 468 828 1570 Wait 40 | . 16 . 24 Move 2731 | 80 425 803 1423 Hop . | . . . . Pick Up 26 | 6 10 6 4 Fast Attach 18 | 6 3 . 9 Attach 7 | 4 . . 3 Detach 4 | 3 1 . . Swap 16 | 1 2 4 9 Drop 26 | . 7 5 14 Fire 107 | 12 4 7 84 Melee . | . . . . Ram 3 | . . 3 . Kick . | . . . . Crush . | . . . . Escape Stasis . | . . . . Rewire . | . . . . Trap . | . . . . Miscellaneous . | . . . . Route ------- -11/Scrapyard -10/Materials (discovered 2 exits: *Mat / *Min) -10/Mines (discovered 3 exits: *Mat x2 / *Sub) -10/Subcaves (discovered 1 exit: *Rec) History --------- Turn | Location | Event 29 | -11/Scrapyard | Discovered new exit (range 16) 127 | -11/Scrapyard | Entered Materials 323 | -10/Materials | Build established: Mutant 546 | -10/Materials | Discovered new exit (range 15) 582 | -10/Materials | Discovered new exit (range 16) 599 | -10/Materials | Entered Mines 601 | -10/Mines | Joined a pair of Derelicts in attacking an 0b10 outpost 633 | -10/Mines | Assembled infested the area 638 | -10/Mines | Assisted by a Guerilla fighting off Assembled 731 | -10/Mines | Discovered new exit (range 9) 738 | -10/Mines | Learned location of Storage (-8) 881 | -10/Mines | Learned location of Zion (-7) 979 | -10/Mines | Discovered new exit (range 5) 999 | -10/Mines | Identified exit to Materials 1112 | -10/Mines | Found DCF Scrap (11 items) 1259 | -10/Mines | Met a Derelict who couldn't figure out how to use a Trap Extractor 1360 | -10/Mines | Discovered new exit (range 14) 1379 | -10/Mines | Identified exit to Subcaves 1480 | -10/Mines | Entered Subcaves 1481 | -10/Subcaves | Approached by a straggling Scientist 1747 | -10/Subcaves | Ambushed by swarm of Subdwellers 1762 | -10/Subcaves | Ambushed by Subdweller buried in earth 1809 | -10/Subcaves | Lost 3 allies 2069 | -10/Subcaves | A swath of the cavern ceiling suddenly collapsed 2261 | -10/Subcaves | Discovered new exit (range 10) 2274 | -10/Subcaves | Identified exit to Recycling 2646 | -10/Subcaves | Build established: Scavenger-Mutant 2806 | -10/Subcaves | A swath of the cavern ceiling suddenly collapsed 2825 | -10/Subcaves | Visited Clippyterm 2828 | -10/Subcaves | Learned Factory trap positions 3252 | -10/Subcaves | Ambushed by Subdweller buried in earth 3254 | -10/Subcaves | Ambushed by angry Subdweller bent on revenge 3266 | -10/Subcaves | Core integrity fell below 50% 3298 | -10/Subcaves | Core integrity fell below 20% 3329 | -10/Subcaves | Lost 4 parts (1p1n2w) 3329 | -10/Subcaves | Destroyed by NJ-AKO(R) with Subdweller Laser Last Messages --------------- 03245_ QS-TU6(u) builds Twisted Machinery. 03252_ Destroyed Carbon-fiber Leg. 03252_ QS-TU6(u) cries out in pain. 03252_ QS-TU6(u) destroyed. 03253_ NJ-AKO(R): "FREEEEDUMB!" 03254_ HO-XMI(R) angrily emerges from the Twisted Machinery. 03254_ HO-XMI(R): "WEHOME!" 03257_ NJ-AKO(R) suffers critical hit (Burn). 03259_ NJ-AKO(R) affixes Scrap Shield Fragment to Scrap Shield. 03262_ VY-DEQ(g) destroyed. 03263_ NJ-AKO(R) affixes Scrap Shield Fragment to Scrap Shield. 03286_ Grenade Launcher destroyed. 03292_ Wheel destroyed. 03294_ Neutrino Core destroyed. 03298_ Lgt. EM Pulse Cannon destroyed. 03320_ Acquired 4 matter. 03323_ Acquired Sub. Power Source. Map ----- +----------------------------------------------------+ | ???????????# #?###?????????## #######???? | | ???????????# ##??????????## # ##### | | ???????????# ####???????????# | | ???????????## ###??????????????# % | | ????????????##????????????????????# | | ?????????????????????????????????????????# =% | | ?????????????????????????????????????????## | | ??????????????????????????????????????????## | | ???????????????????????????????????????????## | | ????????????????????????????????????????????## % | | ?????????????????????????????????????????????## | | ??????????????????????????????????????????????### | | ????????????????????????????????????????????????## | | ?????????????????????????????????????????????????? | | ?????????????????????????????????????????????????? | | ?????????????????????????????????????????????????? | | ?????????????????#######?????##??????????????????? | | ?????????????????#"""""#??### ##?????????????????? | | ?????????????????#""X""#??# #?????????????????? | | ?????????????????#" "#??# ??????????????????? | | ?????????????????### ###??# #????##?????#???????? | | ??????????????????## ###### #?? #??##"#???????? | | ?????????????????## # ### ####""?????????? | | ?????????????????# ; ####"#"#??????????? | | ?????????????????# ;&R&;#""#???????????? | | ?????????????????## @ ;;; #"""""#???????????? | | ??????????????????## ;;#### # #???????????? | | ??????????????????#### ### ;##??#" ##???????????? | | ????????????####?# #?# #####???## ###??????????? | | ???????????## ## ??## ##????????#"""#??????????? | | ???????????# ##?# ##????????# "##??????????? | | ???????????# ### #????????#"##???????????? | | ############ #????????# #????????????? | | #"""""## ## #### #???####?#"#????????????? | | #% ## #### ##??## ## ##???????????? | | "###" ] ## ##??# ## "#???????????? | | ##?#"" ### % #??# ###??????????? | | #??### #]! ## ##??## ##?????????? | | "#????# =%* # #####????# #?????????? | | ###??# ! ## #????????# ## ##?????????? | | ##?# #" ## ##???????# ######??????????? | | ["#### ## # ##??????## ##??#####??????? | | "% %"##" "# ##??????## ##?# #??????? | | [[ ## * ## #???##??# #?# "####???? | | "%]%|## % ## ##??## ?# ### "" ##??? | | ""[""##" ### ## ##??# ## ## "" ###? | | ## "####### ### ##??# ""##"# | | ?####?????## ### #??### ## ""#?# | | ???????????# #?# #????## ## "# | | ???????????## ### ##????# "" [ | +----------------------------------------------------+ Best States ------------- Heat Dissipation 25 Energy Generation 19 Energy Capacity 315 Matter Stores 300 Matter Capacity 300 Sight Range 16 Terrain Scan Density 10 Evasion (%) 42 Item Schematics ----------------- None Robot Schematics ------------------ None Fabricated ------------ Nothing Repaired ---------- Nothing Studied --------- None Alien Tech Used ----------------- None Achievements -------------- I Survived The Infestation Challenges ------------ None Game ------ Seed ArcNovaPick Manual? 0 Play Time 00:37:59 Cumulative 11.0 hours Start 2026.01.03 @ 04:00:25 End 2026.01.03 @ 04:36:05 Sessions 1 Manual Loads 0 Difficulty Rogue Special Mode None Game No. 13 Rogue 13 Adventurer 0 Explorer 0 Win Type - Total 0 Types 0/0/0/0/0/0/0/0/0/0 Lore% 16 Gallery% 11 Achievement% 13 Wizard Run 0 Options --------- Layout 1 ASCII 0 Keyboard 0 Movement Arrows Keybinds 0 Fullscreen 2 Font 24/Crisp Map View 50x35 Zoom Use 0% Tactical HUD 1 Map Filters NONE Filters NONE Steam 1 RUN: 0261af15-b6b0-4b0c-825b-05e1f2528731